fUSD/lending_fUSD_20260208
["ID","MTS","AMOUNT","RATE_DAILY","PERIOD"]
[404813891,1770591046197,-420.0,0.00044367,10]
[404813892,1770591046313,-15677.65498907,0.00044367,10]
[404813893,1770591046325,-38189.82715458,0.00044367,10]
[404813894,1770591046336,-11947.57819722,0.00044367,10]
[404813910,1770591059730,-300.0,0.00037808,2]
[404813911,1770591063268,300.0,0.00037808,2]
[404813912,1770591069416,2000.0,0.00037,2]
[404813913,1770591072877,300.0,0.00037808,2]
[404813914,1770591083161,300.0,0.00037808,2]
[404813915,1770591089927,-150.0,0.00038482,2]
[404813916,1770591089952,-195.0,0.00039444,120]
[404813917,1770591089979,-150.0,0.00040406,2]
[404813918,1770591090005,-2000.0,0.000407,2]
[404813919,1770591090142,-264.25342189,0.00041216,2]
[404813920,1770591090173,-1802.67147093,0.00041316,15]
[404813921,1770591090291,-866.16021436,0.00041316,15]
[404813922,1770591090320,-598.85788599,0.00041906,15]
[404813923,1770591090390,-46.14401366,0.00041906,15]
[404813924,1770591090422,-2023.82978564,0.00041906,15]
[404813925,1770591090451,-195.0,0.0004233,120]
[404813926,1770591090479,-150.0,0.00042426,120]
[404813927,1770591090543,-2331.17831471,0.00042496,15]
[404813928,1770591090600,-337.65337058,0.00042496,15]
[404813929,1770591090609,-262.35042872,0.0004274,7]
[404813930,1770591090639,-275.16319136,0.0004274,7]
[404813931,1770591090667,-1138.82298314,0.0004301,2]
[404813932,1770591090721,-2172.037651,0.00043087,15]
[404813933,1770591090755,-496.79403429,0.00043087,15]
[404813934,1770591090783,-1000.0,0.00043144,2]
[404813935,1770591090809,-550.0,0.00043226,5]
[404813936,1770591090868,-906.42193142,0.00043227,2]
[404813937,1770591090898,-10.57806858,0.00043227,2]
[404813938,1770591090927,-2310.02217755,0.00043677,15]
[404813939,1770591090959,-358.80950774,0.00043677,15]
[404813940,1770591091003,-5000.01,0.00043982,15]
[404813941,1770591091026,1000.0,0.00033081,2]
[404813942,1770591093083,-4000.01,0.00043982,15]
[404813943,1770591093269,-5000.01,0.00043982,15]
[404813944,1770591093370,-5000.01,0.00043982,15]
[404813945,1770591093495,-5000.01,0.00043982,15]
[404813946,1770591093635,-999.95,0.00043982,15]
[404813947,1770591095214,3000.11,0.00043974,15]
[404813948,1770591095237,5000.01,0.00043974,15]
[404813949,1770591095260,5000.01,0.00043974,15]
[404813950,1770591095282,5000.01,0.00043974,15]
[404813951,1770591095305,5000.01,0.00043974,15]
[404813952,1770591098600,1350.138,0.00043677,68]
[404813953,1770591098661,180.481,0.00043677,68]
[404813954,1770591110543,1999.0,0.00043835,120]
[404813955,1770591123268,433.80361693,0.00039773,5]
[404813956,1770591126749,569.41149157,0.0004301,2]
[404813957,1770591132704,467.1758915,0.00043956,15]
[404813958,1770591132730,5000.01,0.00043956,15]
[404813959,1770591132757,5000.01,0.00043956,15]
[404813960,1770591132782,5000.01,0.00043956,15]
[404813961,1770591308276,3773.0,7.945e-05,2]
[404813962,1770591308305,1658.426683,7.945e-05,2]
[404813963,1770592000159,-241.0,0.00024999,2]
[404813964,1770592000185,-250.0,0.00025,2]
[404813965,1770592000209,-1144.99484653,0.00025,2]
[404813966,1770592157074,-209.7043788,0.00025,2]
[404813970,1770592232232,-461.74922908,0.00025,2]
[404813971,1770592232242,-500.0,0.00025,2]
[404813972,1770592232252,-447.17420307,0.00025,2]
[404813973,1770592232261,-250.0,0.000275,2]
[404813975,1770592232271,-250.0,0.00028808,2]
[404813977,1770592232280,-150.0,0.00034904,2]
[404813978,1770592232290,-999.99,0.00034904,2]
[404813979,1770592232300,-4259.5,0.00034904,2]
[404813980,1770592232318,-1229276.71000777,0.00036498,2]
[404813981,1770592232332,-209465.53964961,0.00036498,2]
[404813982,1770592232344,-258700.51041225,0.00036498,2]
[404813983,1770592232356,-434143.43734586,0.00036498,2]
[404813984,1770592232368,-1254.41808677,0.00036498,2]
[404813985,1770592232384,-746.49735324,0.00036498,2]
[404813986,1770592232396,-300.1692,0.00036498,2]
[404813987,1770592232416,-957.8685024,0.00036498,2]
[404813988,1770592232427,-2869.89026542,0.00036498,2]
[404813989,1770592232445,-357.56662876,0.00036498,2]
[404813990,1770592232506,-21000.38516961,0.00036498,2]
[404813991,1770592239737,-367.0,0.00036498,2]
[404813992,1770592239806,-3037.31070977,0.00036498,2]
[404813993,1770592239817,-25791.48929023,0.00036498,2]
[404813994,1770592239830,-911.35867628,0.00036498,2]
[404813995,1770592239930,-1120.43290127,0.00036498,2]
[404813996,1770592239996,-329.17828,0.00036498,2]
[404813997,1770592240015,-1312774.54823053,0.00036498,2]
[404813998,1770592240029,-572.0,0.000365,5]
[404813999,1770592240040,-9999.99,0.00036598,2]
[404814000,1770592240051,-150.0,0.00036649,2]
[404814001,1770592240064,-500.0,0.00036849,2]
[404814002,1770592240076,-1435.91,0.00037583,2]
[404814003,1770592240087,-931.1,0.00037747,2]
[404814004,1770592240098,-300.0,0.00037808,2]
[404814005,1770592240111,-200.0,0.00037919,2]
[404814006,1770592240122,-150.0,0.00038482,2]
[404814007,1770592240133,-179.25417958,0.00038637,2]
[404814008,1770592240143,-343.18175761,0.00038637,2]
[404814009,1770592240154,-394.13494011,0.00038637,2]
[404814010,1770592240165,-1132.38176006,0.00038637,2]
[404814011,1770592240176,-186.60204479,0.00038637,2]
[404814012,1770592240187,-150.0,0.00038709,30]
[404814013,1770592240200,-150.0,0.00038709,2]
[404814014,1770592240210,-151.0,0.00038734,14]
[404814015,1770592240221,-151.0,0.00038734,14]
[404814016,1770592240233,-250.0,0.00038737,120]
[404814017,1770592240244,-250.0,0.00038737,120]
[404814018,1770592240255,-250.0,0.00038737,120]
[404814020,1770592240266,-250.0,0.00038737,120]
[404814021,1770592240277,-250.0,0.00038737,120]
[404814023,1770592240287,-250.000001,0.00038737,120]
[404814025,1770592240297,-279.40616332,0.00038764,30]
[404814027,1770592240307,-8379.38,0.000388,14]
[404814029,1770592240318,-412.58,0.000388,30]
[404814031,1770592240328,-6172.42,0.00038837,2]
[404814033,1770592240339,-394.13494003,0.00039263,2]
[404814034,1770592240351,-343.18175759,0.00039441,2]
[404814036,1770592240362,-168.0,0.00039446,2]
[404814038,1770592240373,-179.25417957,0.00039576,2]
[404814040,1770592240383,-168.0,0.00039637,2]
[404814042,1770592240392,-166.66,0.00039683,30]
[404814044,1770592240402,-1080.11,0.00039683,55]
[404814045,1770592240412,-180.481,0.00039683,55]
[404814046,1770592240422,-500.0,0.00039773,5]
[404814047,1770592240432,-229.66150864,0.00039773,5]
[404814048,1770592240443,-500.0,0.00039813,2]
[404814049,1770592240454,-394.13494003,0.00039888,2]
[404814050,1770592240464,-300.0,0.00039915,2]
[404814051,1770592240474,-572.03870209,0.00039915,2]
[404814052,1770592240484,-500.0,0.00039915,2]
[404814053,1770592240494,-150.0,0.0003993,7]
[404814054,1770592240504,-150.0,0.0003993,7]
[404814055,1770592240514,-150.0,0.0003993,7]
[404814056,1770592240524,-150.0,0.0003993,7]
[404814057,1770592240534,-150.0,0.0003993,7]
[404814058,1770592240543,-150.0,0.0003993,7]
[404814060,1770592240554,-150.0,0.0003993,7]
[404814062,1770592240564,-150.0,0.0003993,7]
[404814063,1770592240573,-150.0,0.0003993,7]
[404814065,1770592240583,-20844.02,0.0004,120]
[404814066,1770592240594,-22500.0,0.0004,120]
[404814068,1770592240604,-153.0,0.0004,120]
[404814069,1770592240615,-513.77859925,0.0004,2]
[404814070,1770592240624,-151.0,0.0004,120]
[404814071,1770592240636,-500.0,0.00040189,2]
[404814072,1770592240646,-343.18175759,0.00040246,28]
[404814073,1770592240657,-1013.85,0.00040376,2]
[404814074,1770592240668,-150.0,0.00040406,2]
[404814075,1770592240679,-179.25417957,0.00040514,2]
[404814076,1770592240690,-394.13494003,0.00040514,15]
[404814077,1770592240703,-166.66,0.00040518,30]
[404814078,1770592240713,-1999.0,0.00040669,14]
[404814079,1770592240723,-236.82,0.00040756,2]
[404814080,1770592240734,-150.5,0.00040785,2]
[404814081,1770592240745,-153.0,0.000409,120]
[404814082,1770592240755,-150.0,0.00041039,7]
[404814083,1770592240764,-343.18175759,0.0004105,28]
[404814084,1770592240775,-1000.0043723,0.00041095,60]
[404814085,1770592240785,-151.0,0.000411,120]
[404814086,1770592240795,-394.13494003,0.0004114,15]
[404814087,1770592240805,-168.0,0.00041164,2]
[404814088,1770592240816,-1102.497,0.00041306,2]
[404814089,1770592240826,-6585.0,0.00041306,2]
[404814090,1770592240837,-412.0,0.00041306,2]
[404814091,1770592240848,-150.0,0.00041335,2]
[404814092,1770592240859,-150.0,0.00041335,2]
[404814093,1770592240870,-166.66,0.00041354,30]
[404814094,1770592240880,-168.0,0.00041364,2]
[404814095,1770592240891,-200.0,0.0004139,2]
[404814096,1770592240901,-179.25417957,0.00041453,3]
[404814097,1770592240912,-1132.38176004,0.00041453,2]
[404814098,1770592240922,-412.58,0.000415,30]
[404814099,1770592240932,-557.42,0.00041577,2]
[404814100,1770592240943,-7161.06,0.00041609,2]
[404814101,1770592240955,-394.13494003,0.00041765,15]
[404814102,1770592240966,-770.9,0.0004185,2]
[404814103,1770592240977,-343.18175759,0.00041855,28]
[404814104,1770592240991,-153.0,0.000419,120]
[404814105,1770592241001,-168.0,0.0004199,2]
[404814106,1770592241012,-168.0,0.00042036,2]
[404814107,1770592241024,-8379.38,0.000421,14]
[404814108,1770592241035,-150.0,0.00042149,30]
[404814109,1770592241045,-166.66,0.00042189,30]
[404814110,1770592241055,-151.0,0.000422,120]
[404814111,1770592241067,-150.5,0.00042212,2]
[404814112,1770592241078,-179.25417957,0.00042391,7]
[404814113,1770592241088,-394.13494003,0.00042391,15]
[404814114,1770592241100,-150.0,0.00042426,120]
[404814115,1770592241110,-15000.0,0.00042466,120]
[404814116,1770592241120,-343.18175759,0.00042659,28]
[404814117,1770592241130,-276.0926,0.0004275,2]
[404814118,1770592241140,-153.0,0.000428,120]
[404814119,1770592241152,-43556.0,0.0004285,30]
[404814120,1770592241162,-200.0,0.00042964,2]
[404814121,1770592241173,-5528.0,0.00042986,120]
[404814122,1770592241183,-164.0,0.00043,16]
[404814123,1770592241193,-394.13494003,0.00043017,15]
[404814124,1770592241203,-166.66,0.00043025,30]
[404814125,1770592241213,-4123.751,0.00043027,2]
[404814126,1770592241227,-66091.4368,0.00043027,2]
[404814127,1770592241237,-3741.9105,0.00043027,120]
[404814128,1770592241247,-10475.0,0.00043096,120]
[404814129,1770592241258,-150.0,0.00043126,20]
[404814130,1770592241268,-631.57,0.00043227,2]
[404814131,1770592241279,-3484.0,0.00043227,2]
[404814132,1770592241290,-616.0,0.00043227,2]
[404814133,1770592241300,-917.0,0.00043227,2]
[404814134,1770592241311,-150.0,0.00043258,30]
[404814135,1770592241322,-43556.0,0.00043292,30]
[404814136,1770592241334,-151.0,0.000433,120]
[404814137,1770592241344,-1000.0,0.00043313,20]
[404814138,1770592241355,-2827.0,0.0004332,16]
[404814139,1770592241365,-179.25417957,0.0004333,11]
[404814140,1770592241376,-206.93,0.00043367,5]
[404814141,1770592241387,-412.58,0.000434,30]
[404814142,1770592241397,-343.18175759,0.00043464,28]
[404814143,1770592241408,-394.13494003,0.00043642,15]
[404814144,1770592241419,-52580.98662817,0.0004366,2]
[404814145,1770592241429,-196.0,0.00043667,16]
[404814146,1770592241440,-153.0,0.000437,120]
[404814147,1770592241455,-43556.0,0.00043734,30]
[404814148,1770592241466,-1999.0,0.00043835,120]
[404814149,1770592241478,-166.66,0.0004386,30]
[404814150,1770592241488,-500.0,0.00043874,2]
[404814151,1770592241498,-2467.0559643,0.00043896,2]
[404814152,1770592241509,-1267.4720183,0.00043896,2]
[404814153,1770592241519,-25000.0,0.00043921,15]
[404814154,1770592241529,-25000.0,0.0004393,15]
[404814155,1770592241539,-25000.0,0.00043938,15]
[404814156,1770592241550,-2721.0,0.00043939,16]
[404814157,1770592241561,-622.49,0.00043946,120]
[404814158,1770592241572,-25000.0,0.00043947,15]
[404814159,1770592241582,-9532.7941085,0.00043956,15]
[404814160,1770592241593,-25000.0,0.00043965,15]
[404814161,1770592241603,-284.70574579,0.00043965,2]
[404814162,1770592241614,-1999.85,0.00043974,15]
[404814163,1770592241625,-25000.0,0.00043991,15]
[404814164,1770592241636,-8379.38,0.00044,14]
[404814165,1770592241646,-500.0,0.00044,120]
[404814166,1770592241657,-151.0,0.00044033,120]
[404814167,1770592241667,-25000.0,0.00044036,15]
[404814168,1770592241677,-25000.0,0.00044045,15]
[404814169,1770592241687,-25000.0,0.00044054,15]
[404814170,1770592241697,-25000.0,0.00044054,15]
[404814171,1770592241710,-103650.92584565,0.00044061,54]
[404814172,1770592241720,-7103.0,0.00044061,7]
[404814173,1770592241731,-43556.0,0.00044176,30]
[404814174,1770592241741,-10000.0,0.00044267,2]
[404814175,1770592241751,-500.0,0.00044268,60]
[404814176,1770592241762,-500.0,0.00044268,60]
[404814177,1770592241772,-500.0,0.00044268,60]
[404814178,1770592241782,-500.0,0.00044268,60]
[404814179,1770592241792,-500.0,0.00044268,60]
[404814180,1770592241802,-500.0,0.00044268,60]
[404814181,1770592241812,-500.0,0.00044268,60]
[404814182,1770592241822,-500.0,0.00044268,60]
[404814183,1770592241833,-500.0,0.00044268,60]
[404814184,1770592241842,-500.0,0.00044268,60]
[404814185,1770592241852,-500.0,0.00044268,60]
[404814186,1770592241862,-500.0,0.00044268,60]
[404814187,1770592241872,-500.0,0.00044268,60]
[404814188,1770592241882,-500.0,0.00044268,60]
[404814189,1770592241892,-500.0,0.00044268,60]
[404814190,1770592241902,-401.59477055,0.00044268,60]
[404814191,1770592241913,-179.25417957,0.00044268,15]
[404814192,1770592241923,-343.18175759,0.00044268,28]
[404814193,1770592241933,-1132.38176004,0.00044268,2]
[404814194,1770592241945,-394.13494003,0.00044268,15]
[404814195,1770592241957,-500.0,0.0004427,3]
[404814196,1770592241967,-400.0,0.0004427,3]
[404814197,1770592241978,-700.0,0.0004427,3]
[404814198,1770592241987,-253.0,0.000443,46]
[404814199,1770592241997,-150.0,0.000443,2]
[404814200,1770592242007,-150.0,0.000443,29]
[404814201,1770592242019,-6585.0,0.00044306,2]
[404814202,1770592242032,-412.0,0.00044306,2]
[404814203,1770592242042,-336.09645641,0.00044308,30]
[404814204,1770592242052,-239.84119403,0.00044309,30]
[404814205,1770592242064,-250.0,0.00044309,30]
[404814206,1770592242074,-154.247552,0.00044316,120]
[404814207,1770592242084,-231.28369723,0.00044317,60]
[404814208,1770592242094,-250.0,0.00044317,60]
[404814209,1770592242104,-223.0315306,0.0004432,56]
[404814210,1770592242114,-250.0,0.0004432,56]
[404814211,1770592242125,-27405.9481084,0.00044351,2]
[404814212,1770592242136,-155.0,0.00044355,120]
[404814213,1770592242146,-243.55484211,0.00044356,120]
[404814214,1770592242156,-500.0,0.00044356,120]
[404814215,1770592242167,-500.0,0.00044356,120]
[404814216,1770592242178,-500.0,0.00044356,120]
[404814217,1770592242189,-551.19137094,0.00044356,120]
[404814218,1770592242202,-520.20381481,0.00044356,120]
[404814219,1770592242213,-263.74230977,0.00044356,120]
[404814220,1770592242224,-518.34107667,0.00044356,120]
[404814221,1770592242234,-500.0,0.00044356,120]
[404814222,1770592242245,-500.0,0.00044356,120]
[404814223,1770592242255,-500.0,0.00044356,120]
[404814224,1770592242265,-516.83948353,0.00044356,120]
[404814225,1770592242275,-500.0,0.00044356,120]
[404814226,1770592242286,-500.0,0.00044356,120]
[404814227,1770592242296,-500.0,0.00044356,120]
[404814228,1770592242306,-561.62040629,0.00044356,120]
[404814229,1770592242316,-500.0,0.00044356,120]
[404814230,1770592242326,-500.0,0.00044356,120]
[404814231,1770592242339,-500.0,0.00044356,120]
[404814232,1770592242349,-616.8911134,0.00044356,120]
[404814233,1770592242359,-500.0,0.00044356,120]
[404814234,1770592242370,-512.86380132,0.00044356,120]
[404814235,1770592242381,-500.0,0.00044356,120]
[404814236,1770592242391,-567.59225551,0.00044356,120]
[404814237,1770592242401,-500.0,0.00044356,120]
[404814238,1770592242411,-507.12262934,0.00044356,120]
[404814239,1770592242421,-500.0,0.00044356,120]
[404814240,1770592242431,-508.26674944,0.00044356,120]
[404814241,1770592242442,-500.0,0.00044356,120]
[404814242,1770592242454,-601.56439072,0.00044356,120]
[404814243,1770592242465,-522.62823999,0.00044356,120]
[404814244,1770592242476,-536.14754411,0.00044356,120]
[404814245,1770592242486,-511.91446045,0.00044356,120]
[404814246,1770592242496,-500.0,0.00044356,120]
[404814247,1770592242505,-500.0,0.00044356,120]
[404814248,1770592242515,-500.0,0.00044356,120]
[404814249,1770592242525,-201.66,0.00044356,120]
[404814250,1770592242536,-500.0,0.00044356,120]
[404814251,1770592242545,-500.0,0.00044356,120]
[404814252,1770592242555,-247.08301781,0.00044356,120]
[404814253,1770592242565,-511.90059127,0.00044356,120]
[404814254,1770592242575,-507.34456484,0.00044356,120]
[404814255,1770592242584,-500.0,0.00044356,120]
[404814256,1770592242594,-516.3437348,0.00044356,120]
[404814257,1770592242604,-500.0,0.00044356,120]
[404814258,1770592242614,-498.32499085,0.00044356,120]
[404814259,1770592242623,-500.0,0.00044356,120]
[404814260,1770592242633,-511.72729476,0.00044356,120]
[404814261,1770592242643,-500.0,0.00044356,120]
[404814262,1770592242652,-500.0,0.00044356,120]
[404814263,1770592242662,-500.0,0.00044356,120]
[404814264,1770592242672,-610.50571851,0.00044356,120]
[404814265,1770592242683,-561.76314722,0.00044356,120]
[404814266,1770592242692,-521.95084735,0.00044356,120]
[404814267,1770592242705,-506.06628268,0.00044356,120]
[404814268,1770592242715,-506.13423638,0.00044356,120]
[404814269,1770592242725,-549.12247087,0.00044356,120]
[404814270,1770592242736,-457.83157175,0.00044356,120]
[404814271,1770592242746,-500.0,0.00044356,120]
[404814272,1770592242756,-500.0,0.00044356,120]
[404814273,1770592242766,-523.86869584,0.00044356,120]
[404814274,1770592242777,-511.60058274,0.00044356,120]
[404814275,1770592242789,-330.06858388,0.00044356,120]
[404814276,1770592242799,-500.0,0.00044356,120]
[404814277,1770592242810,-541.687118,0.00044356,120]
[404814278,1770592242821,-628.48622059,0.00044356,120]
[404814279,1770592242832,-500.0,0.00044356,120]
[404814280,1770592242843,-500.0,0.00044356,120]
[404814281,1770592242855,-500.0,0.00044356,120]
[404814282,1770592242866,-500.0,0.00044356,120]
[404814283,1770592242876,-500.0,0.00044356,120]
[404814284,1770592242886,-500.0,0.00044356,120]
[404814285,1770592242897,-500.0,0.00044356,120]
[404814286,1770592242909,-355.48359107,0.00044356,120]
[404814287,1770592242920,-522.89523916,0.00044356,120]
[404814288,1770592242930,-500.0,0.00044356,120]
[404814289,1770592242940,-500.0,0.00044356,120]
[404814290,1770592242952,-475.13635435,0.00044356,120]
[404814291,1770592242962,-224.36439964,0.00044356,120]
[404814292,1770592242972,-500.0,0.00044356,120]
[404814293,1770592242982,-500.0,0.00044356,120]
[404814294,1770592242992,-155.89758899,0.00044356,120]
[404814295,1770592243002,-500.0,0.00044356,120]
[404814296,1770592243012,-511.94376377,0.00044356,120]
[404814297,1770592243027,-500.0,0.00044356,120]
[404814298,1770592243038,-376.91961473,0.00044356,120]
[404814299,1770592243049,-500.0,0.00044356,120]
[404814300,1770592243060,-500.0,0.00044356,120]
[404814301,1770592243071,-500.0,0.00044356,120]
[404814302,1770592243080,-500.0,0.00044356,120]
[404814303,1770592243090,-500.0,0.00044356,120]
[404814304,1770592243101,-500.0,0.00044356,120]
[404814305,1770592243110,-500.0,0.00044356,120]
[404814306,1770592243119,-500.0,0.00044356,120]
[404814307,1770592243129,-500.0,0.00044356,120]
[404814309,1770592243138,-500.0,0.00044356,120]
[404814310,1770592243147,-500.0,0.00044356,120]
[404814311,1770592243157,-500.0,0.00044356,120]
[404814312,1770592243166,-500.0,0.00044356,120]
[404814313,1770592243175,-201.12,0.00044356,120]
[404814314,1770592243184,-521.62814892,0.00044356,120]
[404814315,1770592243193,-512.92938271,0.00044356,120]
[404814316,1770592243205,-512.2649784,0.00044356,120]
[404814317,1770592243214,-500.0,0.00044356,120]
[404814318,1770592243224,-500.0,0.00044356,120]
[404814319,1770592243233,-500.0,0.00044356,120]
[404814320,1770592243243,-500.0,0.00044356,120]
[404814321,1770592243253,-249.98877614,0.00044356,120]
[404814322,1770592243262,-188.4384347,0.00044356,120]
[404814323,1770592243271,-500.0,0.00044356,120]
[404814324,1770592243281,-500.0,0.00044356,120]
[404814325,1770592243291,-572.5129604,0.00044356,120]
[404814326,1770592243300,-500.0,0.00044356,120]
[404814327,1770592243310,-500.0,0.00044356,120]
[404814328,1770592243320,-500.0,0.00044356,120]
[404814329,1770592243330,-528.95957303,0.00044356,120]
[404814330,1770592243340,-500.0,0.00044356,120]
[404814331,1770592243350,-516.03972,0.00044356,120]
[404814332,1770592243360,-500.0,0.00044356,120]
[404814333,1770592243370,-500.0,0.00044356,120]
[404814334,1770592243380,-500.0,0.00044356,120]
[404814335,1770592243390,-507.57309131,0.00044356,120]
[404814336,1770592243399,-500.0,0.00044356,120]
[404814337,1770592243409,-500.0,0.00044356,120]
[404814338,1770592243418,-500.0,0.00044356,120]
[404814339,1770592243428,-500.0,0.00044356,120]
[404814340,1770592243438,-372.48653616,0.00044356,120]
[404814341,1770592243447,-500.0,0.00044356,120]
[404814342,1770592243458,-500.0,0.00044356,120]
[404814343,1770592243468,-506.16822903,0.00044356,120]
[404814344,1770592243478,-500.0,0.00044356,120]
[404814345,1770592243488,-500.0,0.00044356,120]
[404814346,1770592243497,-500.0,0.00044356,120]
[404814347,1770592243507,-500.0,0.00044356,120]
[404814348,1770592243517,-500.0,0.00044356,120]
[404814349,1770592243526,-500.0,0.00044356,120]
[404814350,1770592243536,-500.0,0.00044356,120]
[404814351,1770592243545,-500.0,0.00044356,120]
[404814352,1770592243555,-386.44,0.00044356,120]
[404814353,1770592243564,-500.0,0.00044356,120]
[404814354,1770592243573,-500.0,0.00044356,120]
[404814355,1770592243584,-500.0,0.00044356,120]
[404814356,1770592243594,-500.0,0.00044356,120]
[404814357,1770592243604,-617.7803545,0.00044356,120]
[404814358,1770592243613,-500.0,0.00044356,120]
[404814359,1770592243623,-500.0,0.00044356,120]
[404814360,1770592243632,-500.0,0.00044356,120]
[404814361,1770592243641,-508.22386027,0.00044356,120]
[404814362,1770592243651,-500.0,0.00044356,120]
[404814364,1770592243825,-624.75,0.00044356,120]
[404814365,1770592243835,-507.64607652,0.00044356,120]
[404814366,1770592243844,-500.0,0.00044356,120]
[404814367,1770592243853,-500.0,0.00044356,120]
[404814368,1770592243863,-500.0,0.00044356,120]
[404814369,1770592243872,-500.0,0.00044356,120]
[404814370,1770592243882,-500.0,0.00044356,120]
[404814371,1770592243891,-500.0,0.00044356,120]
[404814372,1770592243901,-500.0,0.00044356,120]
[404814373,1770592243910,-500.0,0.00044356,120]
[404814374,1770592243921,-500.0,0.00044356,120]
[404814375,1770592243931,-500.0,0.00044356,120]
[404814376,1770592243940,-500.0,0.00044356,120]
[404814377,1770592243952,-500.0,0.00044356,120]
[404814378,1770592243961,-500.0,0.00044356,120]
[404814379,1770592243970,-500.0,0.00044356,120]
[404814380,1770592243980,-500.0,0.00044356,120]
[404814381,1770592243990,-217.46227612,0.00044356,120]
[404814382,1770592244006,-500.0,0.00044356,120]
[404814383,1770592244016,-500.0,0.00044356,120]
[404814384,1770592244028,-500.0,0.00044356,120]
[404814385,1770592244038,-504.52602609,0.00044356,120]
[404814386,1770592244047,-500.0,0.00044356,120]
[404814387,1770592244056,-500.0,0.00044356,120]
[404814388,1770592244066,-500.0,0.00044356,120]
[404814389,1770592244075,-500.0,0.00044356,120]
[404814390,1770592244085,-505.61101787,0.00044356,120]
[404814391,1770592244095,-500.0,0.00044356,120]
[404814392,1770592244105,-500.0,0.00044356,120]
[404814393,1770592244115,-500.0,0.00044356,120]
[404814394,1770592244124,-500.0,0.00044356,120]
[404814395,1770592244133,-521.83327811,0.00044356,120]
[404814396,1770592244143,-500.0,0.00044356,120]
[404814397,1770592244152,-500.0,0.00044356,120]
[404814398,1770592244162,-500.0,0.00044356,120]
[404814399,1770592244171,-500.0,0.00044356,120]
[404814400,1770592244180,-500.0,0.00044356,120]
[404814401,1770592244190,-500.0,0.00044356,120]
[404814402,1770592244199,-500.0,0.00044356,120]
[404814403,1770592244210,-500.0,0.00044356,120]
[404814404,1770592244219,-500.0,0.00044356,120]
[404814405,1770592244229,-500.0,0.00044356,120]
[404814406,1770592244238,-500.0,0.00044356,120]
[404814407,1770592244248,-500.0,0.00044356,120]
[404814408,1770592244257,-500.0,0.00044356,120]
[404814409,1770592244266,-500.0,0.00044356,120]
[404814410,1770592244276,-500.0,0.00044356,120]
[404814411,1770592244286,-500.0,0.00044356,120]
[404814412,1770592244296,-500.0,0.00044356,120]
[404814413,1770592244305,-500.0,0.00044356,120]
[404814414,1770592244315,-607.1,0.00044356,120]
[404814415,1770592244324,-527.32123449,0.00044356,120]
[404814416,1770592244334,-500.0,0.00044356,120]
[404814417,1770592244343,-500.0,0.00044356,120]
[404814418,1770592244352,-500.0,0.00044356,120]
[404814419,1770592244362,-500.0,0.00044356,120]
[404814421,1770592244375,-500.0,0.00044356,120]
[404814422,1770592244384,-584.75,0.00044356,120]
[404814423,1770592244393,-500.0,0.00044356,120]
[404814424,1770592244403,-500.0,0.00044356,120]
[404814425,1770592244412,-500.0,0.00044356,120]
[404814426,1770592244421,-524.1888427,0.00044356,120]
[404814427,1770592244430,-500.0,0.00044356,120]
[404814428,1770592244439,-500.0,0.00044356,120]
[404814429,1770592244449,-506.04930922,0.00044356,120]